Workbook

Sheet 施甸分公司四季度
A1: 保山电力施甸分公司2025年四季度配电网接入能力公示表
A2: 序号 | B2: 设备名称（准确、完整描述配变名称） | C2: 电压等级(kV) | D2: 季度平均负载率（%） | E2: 最大负载率（%） | F2: 负载情况（轻载、重载、过载） | G2: 可开放容量(kVA) | H2: 是否接入受限（是/否） | I2: 覆盖区域（以“县区-乡镇或街道办-村委会或社区-村或小区”的地址层级进行公示）
A3: =ROW()-2 -> 1 | B3: 上村1#台变 | C3: 10kV | D3: 4.47 | E3: 19.42 | F3: 轻载 | G3: =(K3-K3*D3/100)*0.9 -> 214.94 | H3: 否 | I3: 水长村 | K3: 250
A4: =ROW()-2 -> 2 | B4: 大湾子田2#台变 | C4: 10kV | D4: 17.44 | E4: 61.77 | F4: 轻载 | G4: 234.06 | H4: 否 | I4: 旧城村 | K4: 315
A5: 3 | B5: 黄家店2#台变 | C5: 10kV | D5: 12.98 | E5: 33.9 | F5: 轻载 | G5: 125.31 | H5: 否 | I5: 大庄村 | K5: 160
A6: 4 | B6: 鲁躲台变 | C6: 10kV | D6: 3.22 | E6: 26.04 | F6: 轻载 | G6: 87.10 | H6: 否 | I6: 乌木村 | K6: 100
A7: 5 | B7: 下寨田台变 | C7: 10kV | D7: 4.19 | E7: 27.16 | F7: 轻载 | G7: 43.11 | H7: 否 | I7: 后寨村 | K7: 50
A8: 6 | B8: 领岗田台变 | C8: 10kV | D8: 4.55 | E8: 23.94 | F8: 轻载 | G8: 68.72 | H8: 否 | I8: 后寨村 | K8: 80
A9: 7 | B9: 下马安山台变 | C9: 10kV | D9: 5.32 | E9: 79.42 | F9: 轻载 | G9: 85.21 | H9: 否 | I9: 后寨村 | K9: 100
A10: 8 | B10: 施甸县彝朗村镇开发有限责任公司（塘连塘台变） | C10: 10kV | D10: 2.46 | E10: 58.63 | F10: 轻载 | G10: 70.23 | H10: 否 | I10: 摆榔村 | K10: 80
A11: 9 | B11: 杨善洲干部学院大马厂台变 | C11: 10kV | D11: 2.73 | E11: 9.18 | F11: 轻载 | G11: 109.43 | H11: 否 | I11: 雷打树村 | K11: 125
A12: 10 | B12: 小姜寨台变 | C12: 10kV | D12: 2.17 | E12: 13.61 | F12: 轻载 | G12: 88.05 | H12: 否 | I12: 哈寨村 | K12: 100
A13: 11 | B13: 金甸湖岸3#箱变 | C13: 10kV | D13: 4.67 | E13: 14.14 | F13: 轻载 | G13: 686.38 | H13: 否 | I13: 文武社区 | K13: 800
A14: 12 | B14: 莽索村台变 | C14: 10kV | D14: 10.7 | E14: 36.87 | F14: 轻载 | G14: 253.17 | H14: 否 | I14: 张家村 | K14: 315
A15: 13 | B15: 松林3#台变 | C15: 10kV | D15: 8.44 | E15: 34.48 | F15: 轻载 | G15: 82.40 | H15: 否 | I15: 太平村 | K15: 100
A16: 14 | B16: 芦蒿坝1#台变 | C16: 10kV | D16: 8.53 | E16: 33.9 | F16: 轻载 | G16: 164.65 | H16: 否 | I16: 莽林村 | K16: 200
A17: 15 | B17: 电信局门口2#台变 | C17: 10kV | D17: 13.82 | E17: 29.26 | F17: 轻载 | G17: 310.25 | H17: 否 | I17: 文武社区 | K17: 400
A18: 16 | B18: 王家田2#台变 | C18: 10kV | D18: 7.05 | E18: 31.44 | F18: 轻载 | G18: 167.31 | H18: 否 | I18: 绿水村 | K18: 200
A19: 17 | B19: 大竹蓬1#台变 | C19: 10kV | D19: 4.93 | E19: 32.34 | F19: 轻载 | G19: 136.90 | H19: 否 | I19: 大竹篷村 | K19: 160
A20: 18 | B20: 回子龙台变 | C20: 10kV | D20: 6.11 | E20: 44.29 | F20: 轻载 | G20: 42.25 | H20: 否 | I20: 杨家山村 | K20: 50
A21: 19 | B21: 大松林台变 | C21: 10kV | D21: 3.09 | E21: 15.56 | F21: 轻载 | G21: 109.02 | H21: 否 | I21: 菠萝登村 | K21: 125
A22: 20 | B22: 大梨树台变 | C22: 10kV | D22: 12.26 | E22: 29.9 | F22: 轻载 | G22: 98.71 | H22: 否 | I22: 菠萝登村 | K22: 125
A23: 21 | B23: 马水坡台变 | C23: 10kV | D23: 4.65 | E23: 20.68 | F23: 轻载 | G23: 214.54 | H23: 否 | I23: 杨家山村 | K23: 250
A24: 22 | B24: 大明邑安置房台变 | C24: 10kV | D24: 12.15 | E24: 36.39 | F24: 轻载 | G24: 197.66 | H24: 否 | I24: 菠萝登村 | K24: 250
A25: 23 | B25: 架杆台变 | C25: 10kV | D25: 2.4 | E25: 13.1 | F25: 轻载 | G25: 175.68 | H25: 否 | I25: 交邑村 | K25: 200
A26: 24 | B26: 下山后台变 | C26: 10kV | D26: 3.44 | E26: 18.46 | F26: 轻载 | G26: 139.05 | H26: 否 | I26: 交邑村 | K26: 160
A27: 25 | B27: 交邑二社台变 | C27: 10kV | D27: 6.24 | E27: 19.83 | F27: 轻载 | G27: 135.01 | H27: 否 | I27: 交邑村 | K27: 160
A28: 26 | B28: 老关庙台变 | C28: 10kV | D28: 14.7 | E28: 36.67 | F28: 轻载 | G28: 241.83 | H28: 否 | I28: 复兴村 | K28: 315
A29: 27 | B29: 大树脚台变 | C29: 10kV | D29: 8.62 | E29: 23.24 | F29: 轻载 | G29: 259.06 | H29: 否 | I29: 复兴村 | K29: 315
A30: 28 | B30: 热水塘北2#台变 | C30: 10kV | D30: 9.37 | E30: 20.91 | F30: 轻载 | G30: 256.94 | H30: 否 | I30: 热水塘村 | K30: 315
A31: 29 | B31: 热水塘北1#台变 | C31: 10kV | D31: 10.44 | E31: 31.7 | F31: 轻载 | G31: 201.51 | H31: 否 | I31: 热水塘村 | K31: 250
A32: 30 | B32: 热水塘南2#台变 | C32: 10kV | D32: 7.58 | E32: 19.68 | F32: 轻载 | G32: 262.01 | H32: 否 | I32: 热水塘村 | K32: 315
A33: 31 | B33: 热水塘南1#台变 | C33: 10kV | D33: 14.43 | E33: 51.52 | F33: 轻载 | G33: 242.59 | H33: 否 | I33: 热水塘村 | K33: 315
A34: 32 | B34: 小山脚台变 | C34: 10kV | D34: 14.26 | E34: 49.3 | F34: 轻载 | G34: 77.17 | H34: 否 | I34: 瓦房村 | K34: 100
A35: 33 | B35: 大山脚台变 | C35: 10kV | D35: 11.77 | E35: 37.98 | F35: 轻载 | G35: 250.13 | H35: 否 | I35: 瓦房村 | K35: 315
A36: 34 | B36: 瓦房村2#台变 | C36: 10kV | D36: 16.87 | E36: 51.01 | F36: 轻载 | G36: 235.67 | H36: 否 | I36: 瓦房村 | K36: 315
A37: 35 | B37: 瓦房村1#台变 | C37: 10kV | D37: 10.98 | E37: 32.74 | F37: 轻载 | G37: 252.37 | H37: 否 | I37: 瓦房村 | K37: 315
A38: 36 | B38: 石坝台变 | C38: 10kV | D38: 21.7 | E38: 51.2 | F38: 轻载 | G38: 112.75 | H38: 否 | I38: 热水塘村 | K38: 160
A39: 37 | B39: 田坝心台变 | C39: 10kV | D39: 9.47 | E39: 26.88 | F39: 轻载 | G39: 130.36 | H39: 否 | I39: 热水塘村 | K39: 160
A40: 38 | B40: 卖糖村台变 | C40: 10kV | D40: 7.52 | E40: 46.61 | F40: 轻载 | G40: 166.46 | H40: 否 | I40: 热水塘村 | K40: 200
A41: 39 | B41: 龙家村台变 | C41: 10kV | D41: 10.88 | E41: 28.84 | F41: 轻载 | G41: 252.66 | H41: 否 | I41: 热水塘村 | K41: 315
A42: 40 | B42: 小河边2#台变 | C42: 10kV | D42: 11.42 | E42: 36.39 | F42: 轻载 | G42: 251.12 | H42: 否 | I42: 热水塘村 | K42: 315
A43: 41 | B43: 小河边1#台变 | C43: 10kV | D43: 9.62 | E43: 27.86 | F43: 轻载 | G43: 256.23 | H43: 否 | I43: 热水塘村 | K43: 315
A44: 42 | B44: 李家村2#台变 | C44: 10kV | D44: 19.39 | E44: 50.86 | F44: 轻载 | G44: 181.37 | H44: 否 | I44: 热水塘村 | K44: 250
A45: 43 | B45: 李家村1#台变 | C45: 10kV | D45: 12.61 | E45: 47.31 | F45: 轻载 | G45: 125.84 | H45: 否 | I45: 热水塘村 | K45: 160
A46: 44 | B46: 下角里2#台变 | C46: 10kV | D46: 21.25 | E46: 42.77 | F46: 轻载 | G46: 223.26 | H46: 否 | I46: 角里村 | K46: 315
A47: 45 | B47: 下角里1#台变 | C47: 10kV | D47: 11.92 | E47: 28.29 | F47: 轻载 | G47: 158.54 | H47: 否 | I47: 角里村 | K47: 200
A48: 46 | B48: 大麦地坪子台变 | C48: 10kV | D48: 3.28 | E48: 47.44 | F48: 轻载 | G48: 26.11 | H48: 否 | I48: 茨菇村 | K48: 30
A49: 47 | B49: 坡头台变 | C49: 10kV | D49: 18.1 | E49: 76.92 | F49: 轻载 | G49: 73.71 | H49: 否 | I49: 茨菇村 | K49: 100
A50: 48 | B50: 茨菇台变 | C50: 10kV | D50: 14.31 | E50: 43.06 | F50: 轻载 | G50: 38.56 | H50: 否 | I50: 茨菇村 | K50: 50
A51: 49 | B51: 坟山台变 | C51: 10kV | D51: 8.72 | E51: 37.98 | F51: 轻载 | G51: 82.15 | H51: 否 | I51: 茨菇村 | K51: 100
A52: 50 | B52: 坡脚2#台变 | C52: 10kV | D52: 0.07 | E52: 8.76 | F52: 轻载 | G52: 26.98 | H52: 否 | I52: 茨菇村 | K52: 30
A53: 51 | B53: 坡脚1#台变 | C53: 10kV | D53: 12.82 | E53: 54.43 | F53: 轻载 | G53: 39.23 | H53: 否 | I53: 茨菇村 | K53: 50
A54: 52 | B54: 河一河二台变 | C54: 10kV | D54: 4.93 | E54: 17.9 | F54: 轻载 | G54: 68.45 | H54: 否 | I54: 菠萝登村 | K54: 80
A55: 53 | B55: 大明邑台变 | C55: 10kV | D55: 8.22 | E55: 34.17 | F55: 轻载 | G55: 103.25 | H55: 否 | I55: 菠萝登村 | K55: 125
A56: 54 | B56: 腰子塘台变 | C56: 10kV | D56: 10.58 | E56: 40.12 | F56: 轻载 | G56: 64.38 | H56: 否 | I56: 菠萝登村 | K56: 80
A57: 55 | B57: 萝登烤炉群台变 | C57: 10kV | D57: 0.02 | E57: 1.72 | F57: 轻载 | G57: 112.48 | H57: 否 | I57: 菠萝登村 | K57: 125
A58: 56 | B58: 菠萝登台变 | C58: 10kV | D58: 8.84 | E58: 28.13 | F58: 轻载 | G58: 164.09 | H58: 否 | I58: 菠萝登村 | K58: 200
A59: 57 | B59: 打佰故台变 | C59: 10kV | D59: 8.58 | E59: 32.58 | F59: 轻载 | G59: 102.85 | H59: 否 | I59: 菠萝登村 | K59: 125
A60: 58 | B60: 石头路台变 | C60: 10kV | D60: 6.03 | E60: 48.48 | F60: 轻载 | G60: 105.72 | H60: 否 | I60: 菠萝登村 | K60: 125
A61: 59 | B61: 寺登台变 | C61: 10kV | D61: 11.09 | E61: 48.25 | F61: 轻载 | G61: 80.02 | H61: 否 | I61: 菠萝登村 | K61: 100
A62: 60 | B62: 肖家台变 | C62: 10kV | D62: 11.56 | E62: 50.2 | F62: 轻载 | G62: 63.68 | H62: 否 | I62: 菠萝登村 | K62: 80
A63: 61 | B63: 吃水洞台变 | C63: 10kV | D63: 9.2 | E63: 37.23 | F63: 轻载 | G63: 130.75 | H63: 否 | I63: 丛杆村 | K63: 160
A64: 62 | B64: 大寨子台变 | C64: 10kV | D64: 13.35 | E64: 39.71 | F64: 轻载 | G64: 97.48 | H64: 否 | I64: 丛杆村 | K64: 125
A65: 63 | B65: 丛杆台变 | C65: 10kV | D65: 9.16 | E65: 47.4 | F65: 轻载 | G65: 81.76 | H65: 否 | I65: 丛杆村 | K65: 100
A66: 64 | B66: 梨树脚台变 | C66: 10kV | D66: 11.61 | E66: 53.6 | F66: 轻载 | G66: 99.44 | H66: 否 | I66: 丛杆村 | K66: 125
A67: 65 | B67: 联合台变 | C67: 10kV | D67: 25.24 | E67: 48.02 | F67: 轻载 | G67: =(K67-K67*D67/100)*0.9 -> 67.28 | H67: 否 | I67: 杨家山村 | K67: 100
A68: =ROW()-2 -> 66 | B68: 黑箐台变 | C68: 10kV | D68: 4.24 | E68: 32.09 | F68: 轻载 | G68: 107.73 | H68: 否 | I68: 杨家山村 | K68: 125
A69: 67 | B69: 风吹山台变 | C69: 10kV | D69: 12.39 | E69: 61.38 | F69: 轻载 | G69: 23.65 | H69: 否 | I69: 杨家山村 | K69: 30
A70: 68 | B70: 权头台变 | C70: 10kV | D70: 8.39 | E70: 36.64 | F70: 轻载 | G70: 131.92 | H70: 否 | I70: 杨家山村 | K70: 160
A71: 69 | B71: 杨家山台变 | C71: 10kV | D71: 9.25 | E71: 30.75 | F71: 轻载 | G71: 257.28 | H71: 否 | I71: 杨家山村 | K71: 315
A72: 70 | B72: 李家寺台变 | C72: 10kV | D72: 11.43 | E72: 36.65 | F72: 轻载 | G72: 251.10 | H72: 否 | I72: 杨家山村 | K72: 315
A73: 71 | B73: 伙头村台变 | C73: 10kV | D73: 9.86 | E73: 43.03 | F73: 轻载 | G73: 81.13 | H73: 否 | I73: 杨家山村 | K73: 100
A74: 72 | B74: 小满田台变 | C74: 10kV | D74: 9.67 | E74: 45.01 | F74: 轻载 | G74: 40.65 | H74: 否 | I74: 杨家山村 | K74: 50
A75: 73 | B75: 田基台变 | C75: 10kV | D75: 6.53 | E75: 20.08 | F75: 轻载 | G75: 210.31 | H75: 否 | I75: 杨家山村 | K75: 250
A76: 74 | B76: 梳匠台变 | C76: 10kV | D76: 6.24 | E76: 29.88 | F76: 轻载 | G76: 84.38 | H76: 否 | I76: 杨家山村 | K76: 100
A77: 75 | B77: 王献山台变 | C77: 10kV | D77: 3.29 | E77: 19.83 | F77: 轻载 | G77: 69.63 | H77: 否 | I77: 菠萝登村 | K77: 80
A78: 76 | B78: 上山后台变 | C78: 10kV | D78: 2.86 | E78: 14.74 | F78: 轻载 | G78: 139.88 | H78: 否 | I78: 交邑村 | K78: 160
A79: 77 | B79: 交邑山台变 | C79: 10kV | D79: 4.37 | E79: 25.25 | F79: 轻载 | G79: 172.13 | H79: 否 | I79: 交邑村 | K79: 200
A80: 78 | B80: 交邑一社台变 | C80: 10kV | D80: 4.84 | E80: 17.12 | F80: 轻载 | G80: 214.11 | H80: 否 | I80: 交邑村 | K80: 250
A81: 79 | B81: 大山凹台变 | C81: 10kV | D81: 6.05 | E81: 20.46 | F81: 轻载 | G81: 84.56 | H81: 否 | I81: 复兴村 | K81: 100
A82: 80 | B82: 鲁寨台变 | C82: 10kV | D82: 6.49 | E82: 26.51 | F82: 轻载 | G82: 134.65 | H82: 否 | I82: 复兴村 | K82: 160
A83: 81 | B83: 翠岩寺台变 | C83: 10kV | D83: 13.19 | E83: 64.98 | F83: 轻载 | G83: 195.32 | H83: 否 | I83: 复兴村 | K83: 250
A84: 82 | B84: 小东山台变 | C84: 10kV | D84: 13.14 | E84: 32.99 | F84: 轻载 | G84: 246.25 | H84: 否 | I84: 复兴村 | K84: 315
A85: 83 | B85: 小勒平台变 | C85: 10kV | D85: 16.41 | E85: 40.93 | F85: 轻载 | G85: 236.98 | H85: 否 | I85: 勒平村 | K85: 315
A86: 84 | B86: 下马村台变 | C86: 10kV | D86: 17.84 | E86: 51.98 | F86: 轻载 | G86: 232.92 | H86: 否 | I86: 勒平村 | K86: 315
A87: 85 | B87: 土马村台变 | C87: 10kV | D87: 7.49 | E87: 27.35 | F87: 轻载 | G87: 262.27 | H87: 否 | I87: 勒平村 | K87: 315
A88: 86 | B88: 白鹤村台变 | C88: 10kV | D88: 10.59 | E88: 30.83 | F88: 轻载 | G88: 253.48 | H88: 否 | I88: 复兴村 | K88: 315
A89: 87 | B89: 恒基地产4#台变 | C89: 10kV | D89: 9.04 | E89: 24.51 | F89: 轻载 | G89: 654.91 | H89: 否 | I89: 仁和村 | K89: 800
A90: 88 | B90: 恒基地产3#台变 | C90: 10kV | D90: 5.52 | E90: 12.69 | F90: 轻载 | G90: 680.26 | H90: 否 | I90: 仁和村 | K90: 800
A91: 89 | B91: 恒基地产2#台变 | C91: 10kV | D91: 7.78 | E91: 14.75 | F91: 轻载 | G91: 663.98 | H91: 否 | I91: 仁和村 | K91: 800
A92: 90 | B92: 恒基地产1#台变 | C92: 10kV | D92: 9.71 | E92: 21.99 | F92: 轻载 | G92: 650.09 | H92: 否 | I92: 仁和村 | K92: 800
A93: 91 | B93: 街东2#台变 | C93: 10kV | D93: 19.92 | E93: 38.26 | F93: 轻载 | G93: 180.18 | H93: 否 | I93: 仁和村 | K93: 250
A94: 92 | B94: 街西2#台变 | C94: 10kV | D94: 19.45 | E94: 44.42 | F94: 轻载 | G94: 228.36 | H94: 否 | I94: 仁和村 | K94: 315
A95: 93 | B95: 西坪南台变 | C95: 10kV | D95: 17.55 | E95: 48.73 | F95: 轻载 | G95: 233.75 | H95: 否 | I95: 瓦房村 | K95: 315
A96: 94 | B96: 西坪北台变 | C96: 10kV | D96: 9.78 | E96: 27.3 | F96: 轻载 | G96: 255.77 | H96: 否 | I96: 瓦房村 | K96: 315
A97: 95 | B97: 沙沟南台变 | C97: 10kV | D97: 13.03 | E97: 33.61 | F97: 轻载 | G97: 195.68 | H97: 否 | I97: 仁和村 | K97: 250
A98: 96 | B98: 小马桥台变 | C98: 10kV | D98: 12.42 | E98: 36.38 | F98: 轻载 | G98: 197.06 | H98: 否 | I98: 土官社区 | K98: 250
A99: 97 | B99: 代家凹台变 | C99: 10kV | D99: 8.56 | E99: 21.25 | F99: 轻载 | G99: 259.23 | H99: 否 | I99: 土官社区 | K99: 315
A100: 98 | B100: 土官村台变 | C100: 10kV | D100: 18.85 | E100: 45.03 | F100: 轻载 | G100: 230.06 | H100: 否 | I100: 土官社区 | K100: 315
A101: 99 | B101: 李家村台变 | C101: 10kV | D101: 9.11 | E101: 25.97 | F101: 轻载 | G101: 204.50 | H101: 否 | I101: 土官社区 | K101: 250
A102: 100 | B102: 迎蒋村北台变 | C102: 10kV | D102: 4.48 | E102: 19.07 | F102: 轻载 | G102: 171.94 | H102: 否 | I102: 张家社区 | K102: 200
A103: 101 | B103: 永福2#台变 | C103: 10kV | D103: 9.68 | E103: 29.02 | F103: 轻载 | G103: 203.22 | H103: 否 | I103: 永福村 | K103: 250
A104: 102 | B104: 磨石大寨台变 | C104: 10kV | D104: 8.81 | E104: 49.59 | F104: 轻载 | G104: 65.66 | H104: 否 | I104: 银滚坡村 | K104: 80
A105: 103 | B105: 王家小寨台变 | C105: 10kV | D105: 10.59 | E105: 39.16 | F105: 轻载 | G105: 80.47 | H105: 否 | I105: 王家村 | K105: 100
A106: 104 | B106: 河外山台变 | C106: 10kV | D106: 7.87 | E106: 32.57 | F106: 轻载 | G106: 82.92 | H106: 否 | I106: 王家村 | K106: 100
A107: 105 | B107: 大河口2#台变 | C107: 10kV | D107: 8.73 | E107: 28.38 | F107: 轻载 | G107: 164.29 | H107: 否 | I107: 菠萝社区 | K107: 200
A108: 106 | B108: 多板山台变 | C108: 10kV | D108: 5.87 | E108: 39.5 | F108: 轻载 | G108: 42.36 | H108: 否 | I108: 王家村 | K108: 50
A109: 107 | B109: 上桃子寨台变 | C109: 10kV | D109: 25.22 | E109: 35.52 | F109: 轻载 | G109: 134.60 | H109: 否 | I109: 王家村 | K109: 200
A110: 108 | B110: 杨家村2#台变 | C110: 10kV | D110: 6.82 | E110: 21.38 | F110: 轻载 | G110: 264.17 | H110: 否 | I110: 菠萝社区 | K110: 315
A111: 109 | B111: 小芦子箐台变 | C111: 10kV | D111: 8.99 | E111: 35.27 | F111: 轻载 | G111: 102.39 | H111: 否 | I111: 银滚坡村 | K111: 125
A112: 110 | B112: 乌头水台变 | C112: 10kV | D112: 7.35 | E112: 50.84 | F112: 轻载 | G112: 166.77 | H112: 否 | I112: 金鸭塘村 | K112: 200
A113: 111 | B113: 磨石沟台变 | C113: 10kV | D113: 10.38 | E113: 53.93 | F113: 轻载 | G113: 40.33 | H113: 否 | I113: 银滚坡村 | K113: 50
A114: 112 | B114: 由旺小高层 | C114: 10kV | D114: 2.7 | E114: 7.63 | F114: 轻载 | G114: 551.69 | H114: 否 | I114: 杨家村 | K114: 630
A115: 113 | B115: 落白寨台变 | C115: 10kV | D115: 12.26 | E115: 36.43 | F115: 轻载 | G115: 98.71 | H115: 否 | I115: 红谷村 | K115: 125
A116: 114 | B116: 排坊山台变 | C116: 10kV | D116: 4.03 | E116: 18.94 | F116: 轻载 | G116: 86.37 | H116: 否 | I116: 红谷村 | K116: 100
A117: 115 | B117: 红谷田移民点台变 | C117: 10kV | D117: 11.45 | E117: 49.56 | F117: 轻载 | G117: 99.62 | H117: 否 | I117: 红谷村 | K117: 125
A118: 116 | B118: 岩子寺台变 | C118: 10kV | D118: 12.13 | E118: 53.39 | F118: 轻载 | G118: 126.53 | H118: 否 | I118: 查邑社区 | K118: 160
A119: 117 | B119: 平街台变 | C119: 10kV | D119: 18.34 | E119: 58.98 | F119: 轻载 | G119: 146.99 | H119: 否 | I119: 查邑社区 | K119: 200
A120: 118 | B120: 查邑村2#台变 | C120: 10kV | D120: 8.24 | E120: 26.06 | F120: 轻载 | G120: 260.14 | H120: 否 | I120: 查邑社区 | K120: 315
A121: 119 | B121: 毛家村1#台变 | C121: 10kV | D121: 8.33 | E121: 27.09 | F121: 轻载 | G121: 206.26 | H121: 否 | I121: 查邑社区 | K121: 250
A122: 120 | B122: 银川安置房2#变 | C122: 10kV | D122: 2.04 | E122: 6.05 | F122: 轻载 | G122: 705.31 | H122: 否 | I122: 银川村 | K122: 800
A123: 121 | B123: 银川安置房1#变 | C123: 10kV | D123: 3.05 | E123: 10.75 | F123: 轻载 | G123: 698.04 | H123: 否 | I123: 银川村 | K123: 800
A124: 122 | B124: 昌和村安置房 | C124: 10kV | D124: 10.8 | E124: 28.43 | F124: 轻载 | G124: 321.12 | H124: 否 | I124: 中和村 | K124: 400
A125: 123 | B125: 横沟1#台变 | C125: 10kV | D125: 13.04 | E125: 44.04 | F125: 轻载 | G125: 246.53 | H125: 否 | I125: 五楼社区 | K125: 315
A126: 124 | B126: 四大庄南2#台变 | C126: 10kV | D126: 6.16 | E126: 21.69 | F126: 轻载 | G126: 266.04 | H126: 否 | I126: 四大庄村 | K126: 315
A127: 125 | B127: 三家村 | C127: 10kV | D127: 5.33 | E127: 39.34 | F127: 轻载 | G127: 42.60 | H127: 否 | I127: 大秧田村 | K127: 50
A128: 126 | B128: 山尾巴台变 | C128: 10kV | D128: 18.29 | E128: 42.92 | F128: 轻载 | G128: 73.54 | H128: 否 | I128: 大秧田村 | K128: 100
A129: 127 | B129: 大秧田街 | C129: 10kV | D129: 8 | E129: 29.81 | F129: 轻载 | G129: 260.82 | H129: 否 | I129: 大秧田村 | K129: 315
A130: 128 | B130: 笔低2#台变 | C130: 10kV | D130: 4.31 | E130: 22.22 | F130: 轻载 | G130: 137.79 | H130: 否 | I130: 大秧田村 | K130: 160
A131: 129 | B131: 大谷场 | C131: 10kV | D131: 7.01 | E131: 34.67 | F131: 轻载 | G131: =(K131-K131*D131/100)*0.9 -> 41.85 | H131: 否 | I131: 大秧田村 | K131: 50
A132: =ROW()-2 -> 130 | B132: 牛汪塘2#台变 | C132: 10kV | D132: 8.85 | E132: 42.46 | F132: 轻载 | G132: 65.63 | H132: 否 | I132: 大秧田村 | K132: 80
A133: 131 | B133: 上村2#台变 | C133: 10kV | D133: 7.48 | E133: 23.95 | F133: 轻载 | G133: 208.17 | H133: 否 | I133: 大秧田村 | K133: 250
A134: 132 | B134: 大浪坝台变 | C134: 10kV | D134: 3.31 | E134: 32.42 | F134: 轻载 | G134: 43.51 | H134: 否 | I134: 躲安村 | K134: 50
A135: 133 | B135: 躲安3#台变 | C135: 10kV | D135: 4.58 | E135: 21.07 | F135: 轻载 | G135: 137.40 | H135: 否 | I135: 躲安村 | K135: 160
A136: 134 | B136: 躲安2#台变 | C136: 10kV | D136: 7.32 | E136: 24.28 | F136: 轻载 | G136: 262.75 | H136: 否 | I136: 躲安村 | K136: 315
A137: 135 | B137: 金厂桥 | C137: 10kV | D137: 2.54 | E137: 17.73 | F137: 轻载 | G137: 70.17 | H137: 否 | I137: 躲安村 | K137: 80
A138: 136 | B138: 合木树2#台变 | C138: 10kV | D138: 5.38 | E138: 19.94 | F138: 轻载 | G138: 136.25 | H138: 否 | I138: 躲安村 | K138: 160
A139: 137 | B139: 张家村2#台变 | C139: 10kV | D139: 9.64 | E139: 28.94 | F139: 轻载 | G139: 203.31 | H139: 否 | I139: 张家社区 | K139: 250
A140: 138 | B140: 五楼山脚2#台变 | C140: 10kV | D140: 12.04 | E140: 34.72 | F140: 轻载 | G140: 197.91 | H140: 否 | I140: 五楼社区 | K140: 250
A141: 139 | B141: 柿子园2#台变 | C141: 10kV | D141: 8.89 | E141: 25.24 | F141: 轻载 | G141: 205.00 | H141: 否 | I141: 菠萝社区 | K141: 250
A142: 140 | B142: 上源珠2#台变 | C142: 10kV | D142: 10.73 | E142: 27.98 | F142: 轻载 | G142: 128.55 | H142: 否 | I142: 源珠村 | K142: 160
A143: 141 | B143: 下源珠2#台变 | C143: 10kV | D143: 12.29 | E143: 38.39 | F143: 轻载 | G143: 197.35 | H143: 否 | I143: 源珠村 | K143: 250
A144: 142 | B144: 羊毛村2#台变 | C144: 10kV | D144: 13.19 | E144: 36.43 | F144: 轻载 | G144: 195.32 | H144: 否 | I144: 菠萝社区 | K144: 250
A145: 143 | B145: 苏家村2#台变 | C145: 10kV | D145: 16.83 | E145: 45.26 | F145: 轻载 | G145: 187.13 | H145: 否 | I145: 苏家社区 | K145: 250
A146: 144 | B146: 保场山脚台变 | C146: 10kV | D146: 16.88 | E146: 39.7 | F146: 轻载 | G146: 235.65 | H146: 否 | I146: 保场社区 | K146: 315
A147: 145 | B147: 苏家村1#台变 | C147: 10kV | D147: 16.16 | E147: 39.21 | F147: 轻载 | G147: 188.64 | H147: 否 | I147: 苏家社区 | K147: 250
A148: 146 | B148: 杨辉村3#台变 | C148: 10kV | D148: 12.95 | E148: 71.18 | F148: 轻载 | G148: 195.86 | H148: 否 | I148: 张家社区 | K148: 250
A149: 147 | B149: 杨辉村2#台变 | C149: 10kV | D149: 18.24 | E149: 33.37 | F149: 轻载 | G149: 183.96 | H149: 否 | I149: 张家社区 | K149: 250
A150: 148 | B150: 东山坡2#台变 | C150: 10kV | D150: 15.79 | E150: 121.67 | F150: 轻载 | G150: 60.63 | H150: 否 | I150: 坡脚村 | K150: 80
A151: 149 | B151: 尹家庄2#台变 | C151: 10kV | D151: 16.28 | E151: 33.21 | F151: 轻载 | G151: 150.70 | H151: 否 | I151: 坡脚村 | K151: 200
A152: 150 | B152: 大村路东2#台变 | C152: 10kV | D152: 14.13 | E152: 114.95 | F152: 轻载 | G152: 38.64 | H152: 否 | I152: 永福村 | K152: 50
A153: 151 | B153: 沙墩3#台变 | C153: 10kV | D153: 12.07 | E153: 30.55 | F153: 轻载 | G153: 158.27 | H153: 否 | I153: 中和村 | K153: 200
A154: 152 | B154: 沙墩2#台变 | C154: 10kV | D154: 16.38 | E154: 34.93 | F154: 轻载 | G154: 188.15 | H154: 否 | I154: 中和村 | K154: 250
A155: 153 | B155: 沙墩1#台变 | C155: 10kV | D155: 12.33 | E155: 52.85 | F155: 轻载 | G155: 248.54 | H155: 否 | I155: 中和村 | K155: 315
A156: 154 | B156: 菠萝村3#台变 | C156: 10kV | D156: 12.41 | E156: 39.39 | F156: 轻载 | G156: 197.08 | H156: 否 | I156: 菠萝社区 | K156: 250
A157: 155 | B157: 高家田台变 | C157: 10kV | D157: 5.44 | E157: 25.16 | F157: 轻载 | G157: 85.10 | H157: 否 | I157: 常村村 | K157: 100
A158: 156 | B158: 昌和村2号台变 | C158: 10kV | D158: 16.67 | E158: 45.63 | F158: 轻载 | G158: 120.00 | H158: 否 | I158: 中和村 | K158: 160
A159: 157 | B159: 大河口1#台变 | C159: 10kV | D159: 5.78 | E159: 21.5 | F159: 轻载 | G159: 169.60 | H159: 否 | I159: 菠萝社区 | K159: 200
A160: 158 | B160: 摩老邓1#台变 | C160: 10kV | D160: 12.13 | E160: 28.87 | F160: 轻载 | G160: 197.71 | H160: 否 | I160: 华兴村 | K160: 250
A161: 159 | B161: 土官1号台变 | C161: 10kV | D161: 13.36 | E161: 33.86 | F161: 轻载 | G161: 245.62 | H161: 否 | I161: 中和村 | K161: 315
A162: 160 | B162: 昌和村1号台变 | C162: 10kV | D162: 17.23 | E162: 43.22 | F162: 轻载 | G162: 148.99 | H162: 否 | I162: 中和村 | K162: 200
A163: 161 | B163: 新和台变 | C163: 10kV | D163: 5.38 | E163: 18.52 | F163: 轻载 | G163: 212.90 | H163: 否 | I163: 中和村 | K163: 250
A164: 162 | B164: 半坡台变 | C164: 10kV | D164: 6.08 | E164: 34.11 | F164: 轻载 | G164: 42.26 | H164: 否 | I164: 中和村 | K164: 50
A165: 163 | B165: 徐家坡2#台变 | C165: 10kV | D165: 5.02 | E165: 24.52 | F165: 轻载 | G165: 42.74 | H165: 否 | I165: 仁和村 | K165: 50
A166: 164 | B166: 徐家坡1#台变 | C166: 10kV | D166: 6.21 | E166: 26.01 | F166: 轻载 | G166: 135.06 | H166: 否 | I166: 仁和村 | K166: 160
A167: 165 | B167: 蒋家松林台变 | C167: 10kV | D167: 8.78 | E167: 28.62 | F167: 轻载 | G167: 82.10 | H167: 否 | I167: 仁和村 | K167: 100
A168: 166 | B168: 火石坡烤炉群台变 | C168: 10kV | D168: 1.19 | E168: 38.49 | F168: 轻载 | G168: 26.68 | H168: 否 | I168: 仁和村 | K168: 30
A169: 167 | B169: 火石坡台变 | C169: 10kV | D169: 2.39 | E169: 14.44 | F169: 轻载 | G169: 87.85 | H169: 否 | I169: 仁和村 | K169: 100
A170: 168 | B170: 大小水井烤炉群台变 | C170: 10kV | D170: 8.82 | E170: 43.43 | F170: 轻载 | G170: 102.58 | H170: 否 | I170: 金鸭塘村 | K170: 125
A171: 169 | B171: 大元头台变 | C171: 10kV | D171: 10.86 | E171: 37.68 | F171: 轻载 | G171: 128.36 | H171: 否 | I171: 金鸭塘村 | K171: 160
A172: 170 | B172: 金鸭塘台变 | C172: 10kV | D172: 9.78 | E172: 26.05 | F172: 轻载 | G172: 203.00 | H172: 否 | I172: 金鸭塘村 | K172: 250
A173: 171 | B173: 浑水塘台变 | C173: 10kV | D173: 10.34 | E173: 49.53 | F173: 轻载 | G173: 80.69 | H173: 否 | I173: 金鸭塘村 | K173: 100
A174: 172 | B174: 大小水井台变 | C174: 10kV | D174: 8.45 | E174: 33.01 | F174: 轻载 | G174: 102.99 | H174: 否 | I174: 金鸭塘村 | K174: 125
A175: 173 | B175: 银滚坡台变 | C175: 10kV | D175: 11.68 | E175: 51.19 | F175: 轻载 | G175: 79.49 | H175: 否 | I175: 银滚坡村 | K175: 100
A176: 174 | B176: 和平B台变 | C176: 10kV | D176: 4.62 | E176: 19.99 | F176: 轻载 | G176: 137.35 | H176: 否 | I176: 银滚坡村 | K176: 160
A177: 175 | B177: 和平A台变 | C177: 10kV | D177: 3.45 | E177: 21.6 | F177: 轻载 | G177: 139.03 | H177: 否 | I177: 银滚坡村 | K177: 160
A178: 176 | B178: 大芦子箐台变 | C178: 10kV | D178: 8.62 | E178: 30.23 | F178: 轻载 | G178: 131.59 | H178: 否 | I178: 银滚坡村 | K178: 160
A179: 177 | B179: 沙沟北2#台变 | C179: 10kV | D179: 10.79 | E179: 34.49 | F179: 轻载 | G179: 128.46 | H179: 否 | I179: 仁和村 | K179: 160
A180: 178 | B180: 沙沟北1#台变 | C180: 10kV | D180: 18.33 | E180: 53.26 | F180: 轻载 | G180: 231.53 | H180: 否 | I180: 仁和村 | K180: 315
A181: 179 | B181: 上村1#台变 | C181: 10kV | D181: 6.87 | E181: 24.29 | F181: 轻载 | G181: 209.54 | H181: 否 | I181: 大秧田村 | K181: 250
A182: 180 | B182: 郭家寨台变 | C182: 10kV | D182: 9.32 | E182: 33.43 | F182: 轻载 | G182: 130.58 | H182: 否 | I182: 大秧田村 | K182: 160
A183: 181 | B183: 文化村台变 | C183: 10kV | D183: 8.66 | E183: 33.36 | F183: 轻载 | G183: 164.41 | H183: 否 | I183: 大秧田村 | K183: 200
A184: 182 | B184: 大秧田台变 | C184: 10kV | D184: 3.69 | E184: 19.15 | F184: 轻载 | G184: 216.70 | H184: 否 | I184: 大秧田村 | K184: 250
A185: 183 | B185: 松林台变 | C185: 10kV | D185: 3.7 | E185: 22.9 | F185: 轻载 | G185: 173.34 | H185: 否 | I185: 大秧田村 | K185: 200
A186: 184 | B186: 金厂台变 | C186: 10kV | D186: 6.99 | E186: 28.59 | F186: 轻载 | G186: 167.42 | H186: 否 | I186: 岚峰村 | K186: 200
A187: 185 | B187: 岚峰台变 | C187: 10kV | D187: 4.91 | E187: 15.89 | F187: 轻载 | G187: 171.16 | H187: 否 | I187: 岚峰村 | K187: 200
A188: 186 | B188: 笔头台变 | C188: 10kV | D188: 6.69 | E188: 26.31 | F188: 轻载 | G188: 167.96 | H188: 否 | I188: 岚峰村 | K188: 200
A189: 187 | B189: 笔低1#台变 | C189: 10kV | D189: 8.9 | E189: 29.21 | F189: 轻载 | G189: 163.98 | H189: 否 | I189: 大秧田村 | K189: 200
A190: 188 | B190: 牛汪塘1#台变 | C190: 10kV | D190: 5.89 | E190: 20.52 | F190: 轻载 | G190: 266.80 | H190: 否 | I190: 大秧田村 | K190: 315
A191: 189 | B191: 茅草地台变 | C191: 10kV | D191: 6.34 | E191: 24.53 | F191: 轻载 | G191: 67.44 | H191: 否 | I191: 岚峰村 | K191: 80
A192: 190 | B192: 小水井台变 | C192: 10kV | D192: 2.78 | E192: 19.91 | F192: 轻载 | G192: 70.00 | H192: 否 | I192: 躲安村 | K192: 80
A193: 191 | B193: 合木树1#台变 | C193: 10kV | D193: 11.53 | E193: 38.26 | F193: 轻载 | G193: 127.40 | H193: 否 | I193: 躲安村 | K193: 160
A194: 192 | B194: 躲安1#台变 | C194: 10kV | D194: 6.18 | E194: 33.03 | F194: 轻载 | G194: 168.88 | H194: 否 | I194: 躲安村 | K194: 200
A195: 193 | B195: 回龙台变 | C195: 10kV | D195: 6.65 | E195: 20.77 | F195: 轻载 | G195: =(K195-K195*D195/100)*0.9 -> 264.65 | H195: 否 | I195: 躲安村 | K195: 315
A196: =ROW()-2 -> 194 | B196: 王家大寨台变 | C196: 10kV | D196: 8.44 | E196: 30.28 | F196: 轻载 | G196: 164.81 | H196: 否 | I196: 王家村 | K196: 200
A197: 195 | B197: 芭蕉林台变 | C197: 10kV | D197: 18.63 | E197: 24.53 | F197: 轻载 | G197: 146.47 | H197: 否 | I197: 王家村 | K197: 200
A198: 196 | B198: 转龙台变 | C198: 10kV | D198: 19.47 | E198: 25.16 | F198: 轻载 | G198: 72.48 | H198: 否 | I198: 王家村 | K198: 100
A199: 197 | B199: 大山脚台变 | C199: 10kV | D199: 14.11 | E199: 75.42 | F199: 轻载 | G199: 123.68 | H199: 否 | I199: 躲安村 | K199: 160
A200: 198 | B200: 王家台变 | C200: 10kV | D200: 11.13 | E200: 42.63 | F200: 轻载 | G200: 79.98 | H200: 否 | I200: 王家村 | K200: 100
... 1341 more rows
